{"text_format":"2","workbook":"xlsx","n_sheets":5,"sheets":["Orientaciones generales ","IAP_T1_2024","Ejemplo ilustrativo ","Cuadro_Mando_resumen","Tablas de datos"],"not_rendered":{"charts":0,"images":6,"macros":1,"external_links":0,"defined_names":5,"comments":0,"pivot_tables":0},"unopened":[],"bounds":{"document_bytes":16777216,"sheet_cells":100000,"run_cost":"one","rows_first":2000,"rows_last":500,"rows_between":2000,"halvings":0,"cell_chars":16384,"cell_head_chars":4096},"cells_cut":0,"cells_raw":0,"read":"whole","date_system":"1900"}

{"sheet":"Orientaciones generales ","index":0,"n_rows":41,"n_cols":2,"rows_kept":41,"cut":false,"hidden":false,"merged":[[0,1,1,1]]}
[]
[]
[null,"GUÍA RAPIDA PARA COMPLEMENTAR EL INFORME DE AVANCE Y PREVISIONES - PATSYD- T1.2024"]
[]
[null,"Información general"]
[]
[null,"El propósito de esta guía rápida es orientar al beneficiario en la cumplimentación del informe de avance y previsiones correspondiente al primer trimestre de 2024.     "]
[]
[null,"De conformidad con el apartado 3 del artículo 21 de la Orden TMA/370/2022: \"Los informes de previsiones se formularán trimestralmente y recogerán el grado de avance y las estimaciones para los nueve meses siguientes, estructuradas por trimestres.\"."]
[]
[null,"El objetivo de este informe es recoger el grado de avance a 31/03/2024 y las estimaciones para los nueve meses siguientes, estructuradas por trimestres, así como las estimaciones por anualidades hasta la fecha de finalización del proyecto."]
[]
[null,"Hoja 1. IAP_T2. ESTRUCTURA DEL MODELO DE INFORME "]
[null,"El modelo normalizado de informe de avance y prevsiones está estructurado en cuatro (4) apartados:"]
[]
[null,"1. DATOS DEL PROYECTO"]
[null,"Se rellenan de forma automática una vez seleccionado por la entidad beneficiaria el correspondiente número de expediente.  "]
[null,"Para mantener la configuración del archivo y asegurar que se cargan los datos correctamente, es necesario desbloquearlo. Para ello, una vez descargado, se debe pulsar sobre el botón derecho seleccionando \"propiedades\" y marcando el check de \"Desbloquear\"."]
[]
[null,"2. DATOS DE LA PERSONA RESPONSABLE DE LA EJECUCIÓN DEL PROYECTO"]
[null,"Se indicarán el nombre y los apellidos, el cargo, el teléfono y el correo electrónico de la persona que figura en la solicitud con responsable del proyecto. En caso de haber habido un cambio de responsable del proyecto, dicha modificación deberá ser notificada junto con este informe, aportando el CV de la persona designada.  "]
[]
[null,"3. ESTADO ACTUAL Y PREVISIONES DEL PROYECTO"]
[null,"ESTADO ACTUAL A FECHA"]
[null,"Costes subvencionables ejecutados a origen (€) (sin IVA): Se indicarán los costes subvencionables realmente ejecutados a origen hasta la fecha 31 de marzo de 2024. "]
[null,"Importe ejecutado a origen de la subvención concedida (€) (sin IVA): Del importe total de la subvención concedida, se indicará el importe de subvención ejecutado hasta la fecha de 31 de marzo de 2024, siendo este, generalmente, el resultado de aplicar la intensidad de la subvención al coste subvencionable total a orígen que se haya ejecutado hasta esta fecha."]
[]
[null,"PREVISIONES TRIMESTRALES A FECHA"]
[null,"Costes subvencionables previstos ejecutar a origen (€) (sin IVA): Se indicarán los costes subvencionables que se prevén ejecutar a origen hasta la fecha que corresponda según cada trimestre. "]
[null,"Importes previstos a ejecutar a origen de la subvención concedida (€) (sin IVA): Del importe total de la subvención concedida, se indicará el importe total estimado de  subvención que se prevé ejecutar hasta la fecha que corresponda según cada trimestre, siendo este importe, generalmente, el resultado de aplicar la intensidad de la subvención al coste subvencionable total a orígen que se haya ejecutado hasta esta fecha. "]
[]
[null,"PREVISIONES ANUALES A FECHA"]
[null,"Costes subvencionables previstos ejecutar a origen (€) (sin IVA): Se indicarán los costes subvencionables que se prevén ejecutar a origen por cada anualidad correspondiente, según cada anualidad. "]
[null,"Importes previstos a ejecutar a origen de la subvención concedida (€) (sin IVA): Del importe total de la subvención concedida, se indicará el importe total estimado de  subvención que se prevé ejecutar hasta la fecha que corresponda por cada anualidad, siendo este importe, generalmente, el resultado de aplicar la intensidad de la subvención al coste subvencionable total a orígen que se haya ejecutado hasta esta fecha. "]
[]
[null,"4. RIESGOS Y ACCIONES "]
[null,"En este sección se ha de cumplimentar la información relativa a desviaciones producidas en la ejecución del proyecto y sus posibles riesgos de incumplimiento. Para ello, se debe contestar SI o NO, seleccionando del listado desplegable disponible a la pregunta. "]
[null,"En el caso de haberse producido desviaciones en la planificación de los trabajos respecto a lo descrito en la solicitud original o en el informe anterior, se deberán indicar las desviaciones producidas en la ejecución del proyecto y sus posibles riesgos de incumplimiento. Asimismo, en el caso de que haya desviaciones y estas generen riesgo de incumplimiento se deberán describir las medidas preventivas y/o correctoras que se hayan adoptado para mitigar los riesgos de incumplimiento."]
[]
[null,"Hoja 2.  EJEMPLO ILUSTRATIVO"]
[null,"En esta sección se ofrece un ejemplo con datos simulados de cómo debería quedar configurado el IAP una vez cumplimentado los datos por la entidad beneficiaria. "]

{"sheet":"IAP_T1_2024","index":1,"n_rows":56,"n_cols":9,"rows_kept":56,"cut":false,"hidden":false,"merged":[[56,1,63,3],[27,1,39,7],[41,1,53,7],[20,6,20,7],[21,6,21,7],[22,6,22,7],[23,6,23,7],[40,1,40,5],[56,5,63,7],[0,1,2,7],[3,1,3,7],[4,1,4,7],[5,1,5,7],[6,3,6,7],[12,3,12,7],[13,3,13,7],[14,1,14,7],[26,1,26,5],[7,3,7,7],[8,3,8,7],[9,1,9,7],[10,3,10,7],[11,3,11,7],[15,6,15,7],[16,6,16,7],[17,6,17,7],[18,6,18,7],[19,6,19,7],[25,1,25,7]]}
[]
[]
[]
[null,"INFORME DE AVANCE Y PREVISIONES SOBRE EL ESTADO DEL PROYECTO\nPrimer periodo de justificación:\nA fecha 31 de marzo de 2024"]
[]
[null,"1. DATOS DEL PROYECTO"]
[null,"NÚMERO DE SOLICITUD:"]
[null,"ENTIDAD BENEFICIARIA:",null,{"$f":"_xlfn.IFNA(VLOOKUP($D$7,Cuadro_Mando_resumen!A:C,2,0),\"\")","v":""}]
[null,"TÍTULO DEL PROYECTO:",null,{"$f":"_xlfn.IFNA(VLOOKUP($D$7,Cuadro_Mando_resumen!A:C,3,0),\"\")","v":""}]
[null,"2. DATOS DE LA PERSONA RESPONSABLE DE LA EJECUCIÓN DEL PROYECTO"]
[null,"NOMBRE Y APELLIDOS:"]
[null,"CARGO:"]
[null,"TELÉFONO:"]
[null,"CORREO ELECTRÓNICO:"]
[null,"3. ESTADO ACTUAL Y PREVISIONES DEL PROYECTO"]
[null," ESTADO ACTUAL A FECHA",null,"COSTES SUBVENCIONABLES EJECUTADOS A ORIGEN (€) (SIN IVA)",null,"IMPORTE EJECUTADO A ORIGEN DE LA SUBVENCIÓN CONCEDIDA (€) (SIN IVA)","OBSERVACIONES"]
[null,"2024-03-31"]
[null,"PREVISIONES TRIMESTRALES A FECHA",null,"COSTES SUBVENCIONABLES PREVISTOS EJECUTAR A ORIGEN (€) (SIN IVA)",null,"IMPORTES PREVISTOS EJECUTAR A ORIGEN DE LA SUBVENCIÓN CONCEDIDA (€) (SIN IVA)",null,null,"IMPORTANTE – las cifras a fecha futura serán estimaciones  a origen."]
[null,{"$f":"EOMONTH($B$17,3)","v":"2024-06-30"},{"$f":"IF(AND(D19<>\"\",D19<D17),\"KO\",\"OK\")","v":"OK"},null,{"$f":"IF(AND(F19<>\"\",F19<F17),\"KO\",\"OK\")","v":"OK"},null,null,null,{"$f":"IF(OR(C19=\"KO\",E19=\"KO\"),\"El valor indicado en rojo no puede ser inferior al anterior\",\"\")","v":""}]
[null,{"$f":"EOMONTH($B$17,6)","v":"2024-09-30"},{"$f":"IF(AND(D20<>\"\",D20<D19),\"KO\",\"OK\")","v":"OK"},null,{"$f":"IF(AND(F20<>\"\",F20<F19),\"KO\",\"OK\")","v":"OK"},null,null,null,""]
[null,{"$f":"EOMONTH($B$17,9)","v":"2024-12-31"},{"$f":"IF(AND(D21<>\"\",D21<D20),\"KO\",\"OK\")","v":"OK"},null,{"$f":"IF(AND(F21<>\"\",F21<F20),\"KO\",\"OK\")","v":"OK"},null,null,null,""]
[null,"PREVISIONES ANUALES A FECHA",null,"COSTES SUBVENCIONABLES PREVISTOS EJECUTAR A ORIGEN (€) (SIN IVA)",null,"IMPORTES PREVISTOS EJECUTAR A ORIGEN DE LA SUBVENCIÓN CONCEDIDA (€) (SIN IVA)",null,null,"IMPORTANTE – las cifras a fecha futura serán estimaciones a origen."]
[null,"31 de diciembre de 2025",{"$f":"IF(AND(D23<>\"\",D23<D21),\"KO\",\"OK\")","v":"OK"},null,{"$f":"IF(AND(F23<>\"\",F23<=F21),\"KO\",\"OK\")","v":"OK"},null,null,null,{"$f":"IF(OR(C23=\"KO\",E23=\"KO\"),\"El valor indicado en rojo no puede ser inferior al anterior\",\"\")","v":""}]
[null,"Costes totales subvencionables programados                    →",{"$f":"MAX(D17,D19,D20,D21,D23)","v":0},{"$f":"_xlfn.IFNA(VLOOKUP($D$7,Cuadro_Mando_resumen!A:D,4),\"\")","v":""},{"$f":"MAX(F17,F19,F20,F21,F23)","v":0},{"$f":"_xlfn.IFNA(VLOOKUP($D$7,Cuadro_Mando_resumen!A:E,5),\"\")","v":""},"←     Total Subvención concedida",null,{"$f":"IF(F25=\"KO\",\"La subvención ejecutada no podrá ser superior al importe de la subvención concedida. Verifique que está indicando los valores a origen.\",\"\")","v":""}]
[null,null,"Costes subvencionables - Cuadro",{"$f":"IF(C24<=D24,\"OK\",\"KO\")","v":"OK"},"Subvención concedida - Cuadro",{"$f":"IF(E24<=F24,\"OK\",\"KO\")","v":"OK"}]
[null,"4. RIESGOS Y ACCIONES"]
[null,"¿Se han producido desviaciones en la planificación de los trabajos 1) respecto \na la solicitud original o 2) respecto a lo descrito en el informe anterior?",{"$nulls":4},"Indique la respuesta: SÍ/NO    →"]
[null,"Describa estas desviaciones:\n1 - Respecto a la SOLICITUD ORIGINAL:\n\n2 - Respecto al INFORME ANTERIOR:"]
{"$rows_empty":12}
[null,"En caso de haber desviaciones, ¿producen riesgo de incumplimiento? ",{"$nulls":4},"Indique la respuesta: SÍ/NO    →"]
[null,"(Las posibles modificaciones sobre la solicitud original, han de ser solicitadas al órgano concedente, y estimadas por este)\n - Indique el riesgo de incumplimiento: plazo de finalización, alcance de los trabajos, etc.: \n\n - ¿Qué medidas preventivas y/o correctoras se han adoptado para mitigar los riesgos de incumplimiento?: "]
{"$rows_empty":13}
[null,"Firma responsable de ejecución del proyecto:",null,null,null,"Firma representante legal de la entidad beneficiaria:"]

{"sheet":"Ejemplo ilustrativo ","index":2,"n_rows":42,"n_cols":9,"rows_kept":42,"cut":false,"hidden":false,"merged":[[1,8,23,9],[11,3,11,6],[12,3,12,6],[13,3,13,6],[14,1,14,6],[1,1,1,6],[9,1,9,6],[10,3,10,6],[3,1,3,6],[4,1,4,6],[5,1,5,6],[6,3,6,6],[7,3,7,6],[8,3,8,6],[40,1,40,5],[41,1,53,6],[25,1,25,6],[26,1,26,5],[27,1,39,6]]}
[]
[{"$nulls":8}," En la Orden Ministerial por la que se resuelve el procedimiento de concesión de la primera convocatoria de subvenciones del Programa de Apoyo al Transporte Sostenible y Digital en concurrencia competitiva, en el marco del Plan de Recuperación, Transformación y Resiliencia –financiado por la Unión Europea– NextGenerationEU se aprueban la relación de solicitudes a las que se concede subvención.\nSe indica la relación de solicitudes con el importe máximo de financiación del proyecto que corresponde al importe del coste total del proyecto, IVA incluido sin el importe del anticipo.\nLos beneficiarios deberán ejecutar el proyecto propuesto, realizando las actividades en los términos planteados en su solicitud, así como cumplir las obligaciones específicas establecidas en las condiciones y términos de concesión de la subvención.\n\n  Para cumplimentar los epígrafes del Informe de avance y previsiones se indican las siguientes instrucciones:\n\n1. Datos del proyecto: en este apartado se debe cumplimentar, seleccionando y rellenando, los datos relativos a la actividad sobre la que trata el informe de cara a su correcta identificación. En el apartado número de solicitud se puede seleccionar del desplegable uno de los expedientes. Una vez seleccionado el número de solicitud, se autocompleta la entidad beneficiaria y el título del proyecto.\n2. Datos de la persona responsable de la ejecución del proyecto: en este apartado se debe cumplimentar información sobre lo datos principales de la persona responsable de firma: nombre y apellidos, cargo, teléfono y correo electrónico.\n3. Estado actual y previsiones del proyecto: en este apartado se ha de cumplimentar la tabla del modelo con los datos relativos a la ejecución económica del proyecto, tanto actual como prevista. En primer lugar, se debe dar información relativa a los costes subvencionables ejecutados sin IVA y el importe ejecutado de la subvención concedida sin IVA hasta la fecha del informe. En segundo lugar, se deben indicar las previsiones económicas de ambos conceptos para los siguientes dos trimestres. En tercer lugar, las estimaciones, según el caso, sobre estos mismos conceptos para los siguientes dos años.\nHay que tener en cuenta que cada Informe de avance y previsiones contiene los datos relativos a los “Costes subvencionables ejecutados” y el “Importe ejecutado subvención concedida” de las fechas “Estado actual”, “Previsiones trimestrales” y “Previsiones anuales” desde la fecha de inicio de las actividades, es decir, serán acumulativos.\n4. Riesgos y acciones: en este apartado se ha de cumplimentar la información relativa a desviaciones producidas en la ejecución del proyecto y sus posibles riesgos de incumplimiento.\n\nUna vez se hayan completado los 4 apartados del informe, hay que convertir esta pestaña a formato pdf pinchando sobre el icono situado en la parte superior derecha y seleccionando la carpeta de destino donde se guardará el fichero.\n"]
[]
[null,{"$f":"+IAP_T1_2024!B4","v":"INFORME DE AVANCE Y PREVISIONES SOBRE EL ESTADO DEL PROYECTO\nPrimer periodo de justificación:\nA fecha 31 de marzo de 2024"}]
[]
[null,"1. DATOS DEL PROYECTO"]
[null,"NÚMERO DE SOLICITUD:",null,"PATSYD-22-00000"]
[null,"ENTIDAD BENEFICIARIA:",null,"PRUEBA Empresa Transportes, S.A."]
[null,"TÍTULO DEL PROYECTO:",null,"Verificación de funcionamiento con datos simulados\nLos textos e importes mostrados no son reales."]
[null,"2. DATOS DE LA PERSONA RESPONSABLE DE LA EJECUCIÓN DEL PROYECTO"]
[null,"NOMBRE Y APELLIDOS:",null,"Pedro García López"]
[null,"CARGO:",null,"Gerente"]
[null,"TELÉFONO:",null,888888888]
[null,"CORREO ELECTRÓNICO:",null,"pedro.garcia@empresa.es"]
[null,"3. ESTADO ACTUAL Y PREVISIONES DEL PROYECTO"]
[null," ESTADO ACTUAL A FECHA",null,"COSTES SUBVENCIONABLES EJECUTADOS A ORIGEN (€) (SIN IVA)",null,"IMPORTE EJECUTADO A ORIGEN DE LA SUBVENCIÓN CONCEDIDA (€) (SIN IVA)","OBSERVACIONES"]
[null,{"$f":"+IAP_T1_2024!B17","v":"2024-03-31"},null,100000,null,40000]
[null,"PREVISIONES TRIMESTRALES A FECHA",null,"COSTES SUBVENCIONABLES PREVISTOS EJECUTAR A ORIGEN (€) (SIN IVA).",null,"IMPORTES PREVISTOS EJECUTAR A ORIGEN DE LA SUBVENCIÓN CONCEDIDA (€) (SIN IVA).",null,"IMPORTANTE – las cifras a fecha futura serán estimaciones  origen."]
[null,{"$f":"+IAP_T1_2024!B19","v":"2024-06-30"},"OK",200000,"OK",80000,null,""]
[null,{"$f":"+IAP_T1_2024!B20","v":"2024-09-30"},"OK",600000,"OK",240000,null,""]
[null,{"$f":"+IAP_T1_2024!B21","v":"2024-12-31"},"OK",1000000,"OK",400000,null,""]
[null,"PREVISIONES ANUALES A FECHA",null,"COSTES SUBVENCIONABLES PREVISTOS EJECUTAR A ORIGEN (€) (SIN IVA).",null,"IMPORTES PREVISTOS EJECUTAR A ORIGEN DE LA SUBVENCIÓN CONCEDIDA (€) (SIN IVA).",null,"IMPORTANTE – las cifras a fecha futura serán estimaciones  origen."]
[null,{"$f":"+IAP_T1_2024!B23","v":"31 de diciembre de 2025"},"OK",5000000,"OK",2000000,null,""]
[null,"Costes totales subvencionables programados                    →",850000,5000000,2000000,2000000,"←     Total Subvención concedida",""]
[null,null,"Costes subvencionables - Cuadro","KO","Subvención concedida - Cuadro","OK"]
[null,"4. RIESGOS Y ACCIONES"]
[null,"¿Se han producido desviaciones en la planificación de los trabajos respecto \na lo descrito en el informe anterior?",{"$nulls":4},"Indique la respuesta: SÍ/NO"]
[null,"Describa estas desviaciones:\n1 - Respecto a la SOLICITUD ORIGINAL:\n\n2 - Respecto al INFORME ANTERIOR:"]
{"$rows_empty":12}
[null,"En caso de haber desviaciones, ¿producen riesgo de incumplimiento? ",{"$nulls":4},"Indique la respuesta: SÍ/NO"]
[null,"(Las posibles modificaciones sobre la solicitud original, han de ser solicitadas al órgano concedente, y estimadas por este)\n - Indique el riesgo de incumplimiento: plazo de finalización, alcance de los trabajos, etc.: \n\n - ¿Qué medidas preventivas y/o correctoras se han adoptado para mitigar los riesgos de incumplimiento?: "]

{"sheet":"Cuadro_Mando_resumen","index":3,"n_rows":107,"n_cols":5,"rows_kept":107,"cut":false,"hidden":true,"merged":[[0,3,1,3],[0,4,1,4]]}
["DATOS GENERALES",null,null,"Costes subvencionables","Subvención concedida"]
["Código Expediente","Nombre Beneficiario","Título del proyecto"]
["PATSYD-22-00000","PRUEBA Empresa Transportes, S.A.","Verificación de funcionamiento con datos simulados\nLos textos e importes mostrados no son reales.",5000000,2000000]
["PATSYD-22-00005","Pavasal Empresa Constructora, S.A.","+RAPAV: Adecuación total de instalaciones para la fabricación de pavimentos sostenibles",850000,340000]
["PATSYD-22-00007","HUELVA ÁREA LOGÍSTICA INTEGRAL SL","Área de estacionamiento segura y protegida-SSTPA Puerto de Huelva",7111861,2844744]
["PATSYD-22-00017","AIR RAIL, S.L","     ADQUISICIÓN, PARA ASISTENCIA EN TIERRA A AERONAVES, DE VEHÍCUOS NUEVOS PROPULSADOS CON ELECTRICIDAD",25748239,4869600]
["PATSYD-22-00025","AGLOMERADOS MALLORCA, SA","INSTALACIÓN DE PRETRATAMIENTO Y REUTILIZACIÓN DE PAVIMENTO (RAP) EN PLANTA DE AGLOMERADO ASFÁLTICO EXISTENTE SITUADA EN LA CANTERA SON AMAT (MALLORCA)",703789,281515.59999999998]
["PATSYD-22-00029","AVIAPARTNER SPAIN","Aviapartner electric GSE",19953819,2817800]
["PATSYD-22-00032","PADECASA OBRAS Y SERVICIOS, S.A.","TRANSFORMACIÓN INDUSTRIAL DE LA AGRUPACIÓN PADECASA-CYCASA PARA LA ATENCION DE LA DEMANDA DE PAVIMENTOS SOSTENIBLES A GRAN ESCALA",4396730,1758692]
["PATSYD-22-00037","CAPTRAIN ESPAÑA SAU","Desarrollo e implantación de sistema ERTMS B3 en la flota de locomotoras de Captrain",5700000,2850000]
["PATSYD-22-00055","ATHOS RAIL, S.A.","Nueva Terminal intermodal de mercancías refrigeradas y congeladas de ATHOS RAIL, S.A. en Fuenlabrada (Madrid).",3711129.59,1484451.8400000001]
["PATSYD-22-00057","BECSA, S.A.U.","ADAPTACIÓN DE LAS PLANTAS ASFÁLTICAS DE BECSA PARA EL SUMINISTRO DE PAVIMENTOS SOSTENIBLES (BECSAM10)",6306650,2522660]
["PATSYD-22-00061","AUTORIDAD PORTUARIA DE BARCELONA","OPS4B&B - Despliegue de soluciones de suministro eléctrico para Cold Ironing en los puertos de Barcelona y Baleares",22078781.379999999,8831512.5500000007]
["PATSYD-22-00063","TRANSPORTES MIXTOS ESPECIALES SA","Adquisición de 69 vagones nuevos de OP, propileno y autopista ferroviaria ",13560800,6780400]
["PATSYD-22-00071","Pavasal Empresa Constructora, S.A.","COOLRAPAV. Tecnología de reciclado en frio in-situ para producir pavimentos sostenibles",990000,396000]
["PATSYD-22-00072","EIFFAGE INFRAESTRUCTURAS S.A.U","Adaptación de la maquinaria y plantas asfálticas del grupo Eiffage para fabricar pavimentos sostenibles mediante incremento de la tasa de reciclado, reducción de la temperatura de fabricación e incorporación de polvo de caucho de NFVU.",5493995,1867162]
["PATSYD-22-00075","EXCAVACIONES Y TRANSPORTES ORSA S.L.","ASFALTOS SOSTENIBLES",1274065,509626]
["PATSYD-22-00081","Balearia Eurolineas Maritimas S.A.","Sistemas Interconectados e Inteligentes de Transporte Intermodal Marítimo de Carga -  SIITIM",9617746.5099999998,3847098.6]
["PATSYD-22-00085","ASFALTOS DE MADRID","SISTEMA INDUSTRIAL DE ÚLTIMA GENERACIÓN DE ALTA CAPACIDAD PRODUCTIVA Y ELEVADA REDUCCIÓN DE CARBONO PARA LA FABRICACIÓN DE PAVIMENTOS SOSTENIBLES A MENOR TEMPERATURA, CON INCORPORACIÓN DE ALTAS TASAS DE ASFALTO RECICLADO Y CAUCHO NFVU.",7630000,3052000]
["PATSYD-22-00086","Medlog Spain Logistic","Inversión en nuevos vagones convencionales y adaptación de los activos para la mercancía refrigerada",9912500,4520394.16]
["PATSYD-22-00089","Autoridad Portuaria de Huelva","ROUTE TO A PORT INTERCONNECTED AND DIGITAL-RAπD",1267925,507170]
["PATSYD-22-00091","PAPSA INFRAESTRUCTURAS SA","Mejora de la sostenibilidad del proceso de fabricación y puesta en obra de las mezclas asfálticas de PAPSA",1553400.21,621360.07999999996]
["PATSYD-22-00092","INGENIERÍA Y TÉCNICA DEL TRANSPORTE TRIA","Proyecto T.R.I.I.A. Tracción Internacional-Ibérica Adaptable",18817618,14113213.5]
["PATSYD-22-00095","RAILSIDER LOGISTICA FERROVIARIA, S.A.","Inversión en reequipamiento de vagones de carga – Reducciendo la contaminación acústica en el sector ferroviario",275284,110113.60000000001]
["PATSYD-22-00097"," PABASA EUROASFALT, SA","Nuevos desarrollos para la fabricación de pavimentos sostenibles y respetuosos con el medio ambiente",824869.78,329947.90999999997]
["PATSYD-22-00099","Rail & Truck Strait Union","Adquisición de vagones para la explotación de la Autopista Ferroviaria Algeciras-Zaragoza",68493600,30616639.199999999]
["PATSYD-22-00100","SEAT, S.A.","Implantación de ancho de vía UIC en apartadero ferroviario y mejora de la infraestructura ferroviaria en la fábrica de SEAT en Martorell",8590123.2599999998,3436049.3]
["PATSYD-22-00101","BALEARIA EUROLINEAS MARITIMAS, S.A","Buque Cero Emisiones en Puerto (BUCEMTO)",7880200,3152050]
["PATSYD-22-00102","AXPO IBERIA,S.L.","LNGHIVE2 Valencia – Buque para suministro de GNL en el puerto de Valencia  ",49598263.75,14879479.130000001]
["PATSYD-22-00104","Scale Gas Solutions S.L.U.","Net zero hive Canarias: Barco de suministro de combustible alternativo para la descarbonización del transporte marítimo en las Islas Canarias",63042698.210000001,15000000]
["PATSYD-22-00106","BALEARIA EUROLÍNEAS MARITIMAS, S.A. ","CATAMARAN DENTRO DE LA TAXONOMIA VERDE (TAXOVER)",12000000,4800000]
["PATSYD-22-00107","AUTORIDAD PORTUARIA DE SANTA CRUZ DE TENERIFE","PORT COMMUNITY SYSTEM PCS: SISTEMA AVANZADO DEGESTION DE SERVICIOS EN LAAUTORIDAD PORTUARIA DE SANTACRUZ DE TENERIFE",854200,213631.77]
["PATSYD-22-00112","ACCIONA MANTENIMIENTO DE INFRAESTRUCTURAS, S.A.","SIGA - SISTEMA INTELIGENTE DE GESTION AVANZADA",964530,289359]
["PATSYD-22-00113","CONSTRUCCIONES SÁNCHEZ DOMÍNGUEZ SANDO S.A.U","Modernización y Adaptación de una Planta de Aglomerados Sostenibles en el centro de producción de “La Cabaña” en el T.M. de La Rinconada (Sevilla) – Proyecto MAPAS",417091.72,166836.68]
["PATSYD-22-00117","SERVICIOS TERRESTRES Y MARITIMOS, S.A","Gestión Digitalizada y Automatizada de Recepción y Entrega de Contenedores en Terminal Intermodal",657536,263014.40000000002]
["PATSYD-22-00118","AENA S.M.E, S.A ","INSTALACIÓN DE EQUIPOS DE 400Hz EN PLATAFORMAS REMOTAS",1663612.35,665444.93999999994]
["PATSYD-22-00123","ELSAMEX GESTIÓN DE INFRAESTRUCTURAS SL","Plataforma de Ayuda a la Gestión del Mantenimiento de Carreteras",306500,153250]
["PATSYD-22-00126","IBERDROLA CLIENTES, S.A.U.","Despliegue tecnología OPS y descarbonización del suministro en puertos de Pasaia, Vigo y Alicante",7118868.9800000004,1922094.62]
["PATSYD-22-00127","VTG FERROVIARIA ESPAÑOLA S.L.","Adquisición de 200x vagones nuevos para servicios de autopista ferroviaria, complementados con 400x cestas tipo r2L para la carga de semirremolques no reforzados, y 199x vagones para transporte de contenedores y cajas móviles",75116000,37558000]
["PATSYD-22-00128","RENFE MERCANCIAS SME, SA","Implementación del sistema ERTMS Baseline 3 en locomotoras nuevas y existentes",12600000,6300000]
["PATSYD-22-00129","RENFE MERCANCIAS SME, SA","Instalación de sistemas de reducción de ruido para vagones mediante la sustitución de zapatas de frenos de fundición por bloques compuestos tipo LL en vagones S y SS",1780400,712160]
["PATSYD-22-00130","RENFE MERCANCIAS SME, SA","Adquisición de locomotoras eléctricas de gran capacidad de arrastre",77350000,15000000]
["PATSYD-22-00131","RENFE MERCANCIAS SME, SA","Adquisición de vagones",29110000,14555000]
["PATSYD-22-00132","RENFE MERCANCIAS SME, SA","Digitalización y optimización de procesos en centros de transporte de mercancías intermodales: Sistema Operativo de la Terminal (TOS)",600000,240000]
["PATSYD-22-00133","RENFE MERCANCIAS SME, SA","IDENTIFICACIÓN Y TRAZABILIDAD DEL MATERIAL . Proyecto IoT",1280000,512000]
["PATSYD-22-00134","ROYO OPERADOR LOGISTICO, S.L.","Digitalización de los servicios de transporte de mercancías",320000,128000]
["PATSYD-22-00135","SERVICIOS AUXILIARES MARITIMOS ALGECIRAS S.L.","Trabajos para la ejecución de conexiones ferroviarias a las terminales logísticas de Grupo Alonso en Valencia y Algeciras.",19616600,5765292]
["PATSYD-22-00136","GONVAUTO, S.A.","Proyecto de construcción para la implementación de vía con ancho estándar en las terminales de carga 23f y 23h de Gonvauto integrados en el Corredor Mediterráneo.",1092079,344332]
["PATSYD-22-00139","AUTORIDAD PORTUARIA DE BARCELONA","PortDigiRail – Digitalización de la red ferroviaria del Port de Barcelona mediante un Centro de Tráfico Centralizado (CTC)",1588800.31,635520.12]
["PATSYD-22-00140","ATHOS RAIL, S.A.","Sistema de gestión y control integral para la digitalización de la nueva Terminal intermodal de mercancías refrigeradas y congeladas de ATHOS RAIL, S.A",572915.6,229166.24]
["PATSYD-22-00141","PECOVASA RENFE MERCANCÍAS, SOCIEDAD MERCANTIL ESTATAL, S.A.","PECOVASA: TRANSFORMACIÓN VAGONES  PMA31 DOBLE PISO ",8026700,4013350]
["PATSYD-22-00142","PECOVASA RENFE MERCANCÍAS, SOCIEDAD MERCANTIL ESTATAL, S.A.","Digitalización de vagones",450000,180000]
["PATSYD-22-00146","SACYR CONSERVACIÓN, SA","Inroad 2.0",780000,248999.99999999997]
["PATSYD-22-00148","Autoridad Portuaria de la Bahía de Algeciras","Diseño, asitencia técnica y construcción de puntos de suministro eléctrico a buques en el Puerto de Algeciras",6373561,2420462.36]
["PATSYD-22-00149","ENDESA X SERVICIOS S.L.","OPS Cruceros Cádiz: Implementación de un sistema de suministro eléctrico para Cold Ironing para cruceros en el Puerto de la Bahía de Cádiz",6803973.0999999996,2721589.24]
["PATSYD-22-00152","TECNOLOGÍA DE FIRMES, S.A.","Reutilización de caucho procedente de NFU para empleo en la fabricación de mezclas asfálticas",266158.76,104866.55]
["PATSYD-22-00153","TECNOLOGÍA DE FIRMES, S.A.","Disminución de la temperatura de fabricación de la mezcla asfáltica por espumación del betún",151150,60460]
["PATSYD-22-00154","TECNOLOGÍA DE FIRMES, S.A.","Nuevo método de reutilización al 100% del RAP en mezclas asfálticas de altas prestaciones          ",970000,388000]
["PATSYD-22-00155","CAPTRAIN ESPAÑA SAU","Adquisición de locomotoras de mercancías eléctricas por Captrain",39490645.159999996,15000000]
["PATSYD-22-00158","CAPTRAIN ESPAÑA SAU","Desarrollo, implementación e integración de sistemas de trazabilidad de material rodante y comunicación digital",1015000,406000]
["PATSYD-22-00161","ALVAC, S.A.","PROYECTO GEOSAFETY",2579816,898658]
["PATSYD-22-00162","GLOBALIA HANDLING SAU","Inversiones para un transporte aeronáutico sostenible",36738225.710000001,6492847.3600000003]
["PATSYD-22-00163","VTG RAIL EUROPE GMBH SUCURSAL ESPAÑA","Reemplazo de zapatas de fundición por bloques compuestos de tipo LL en 205 vagones de mercancías",298481.15000000002,119392.46000000002]
["PATSYD-22-00179","Medlog Spain Logistic S.L.U","Nave de ensamblaje multimodal en la ZAL de Valencia",1114819,445927.6]
["PATSYD-22-00180","RAILSIDER MEDITERRANEO SA","Digitalización de las terminales de RAILSIDER MEDITERRANEO, S.A.",378699,148502]
["PATSYD-22-00181","Medlog Spain Logistic","Construcción de terminal ferroviaria intermodal en Zaragoza",7750849.5300000003,3100339.81]
["PATSYD-22-00182","TRANSFESA LOGISTICS, S.A.","ADQUISICIÓN DE VAGONES PORTA VEHÍCULOS",35000000,13825000]
["PATSYD-22-00186","ACSA OBRAS E INFRAESTRUCTURAS, S.A.U.","Pavimentos asfálticos sostenibles basados en la reutilización del fresado, mediante las técnicas semicaliente y fría",2492497,996998.8]
["PATSYD-22-00188","GO TRANSPORT SERVICIOS 2018 SA","Renovación-ampliación del material tractor ferroviario para la mejora medioambiental",33588300,13435320]
["PATSYD-22-00193","CHM OBRAS E INFRAESTRUCTURAS S.A.","CHM-PAVIMENTOS SOSTENIBLES",1195000,478000]
["PATSYD-22-00194","TransfesaLogistics Sa","Instalación de sistemas de reducción de ruido en vagones",407881.59,163152.64000000001]
["PATSYD-22-00195","PORTSUR CASTELLÓN S.A.","Electrificación del muelle de PORTSUR con generación local de energía renovable (NEXTPORT-ELECTRO)",5444092.8399999999,2177637.13]
["PATSYD-22-00197","ALVAC, S.A.","PLANTA BOLAÑOS",354400,138523]
["PATSYD-22-00198","PORTSUR CASTELLÓN S.A.","Digitalización del nodo portuario de PORTSUR (NEXTPORT-DIGITAL)",314416,125766.40000000001]
["PATSYD-22-00199","ERMEWA IBERICA S.L.","Diseño, fabricación y adquisición de 150 vagones Shimmns  de nueva construcción para el sector siderúrgico",21772538,10886269]
["PATSYD-22-00200","TERMINAL DE CONTENEDORES DE MIRANDA S.L.","Vía Ferroviaria Terminales Contenedores Miranda. TCM-VF",1922900,717833.21]
["PATSYD-22-00201","CONTINENTAL RAIL, S.A.U.","Adquisición de Vagones para los Tráficos de Continental Rail susceptibles de cambiar de tracción diésel a tracción eléctrica",46450056,19137423.07]
["PATSYD-22-00203","CONTINENTAL RAIL, S.A.U. ","Adquisición de Locomotoras para los Tráficos de Continental Rail susceptibles de cambiar de tracción diésel a tracción eléctrica",72163200,15000000]
["PATSYD-22-00205","RAILSIDER MEDITERRANEO, S.A.","Adaptación y mejora de la terminal ferroviaria en la Nave de Railsider Mediterráneo en el T.M. de Sagunto",2688317,1033963.74]
["PATSYD-22-00207","Rail & Truck Strait Union","Adquisición de locomotoras de mercancías eléctricas para la explotación de la Autopista Ferroviaria Algeciras-Zaragoza",67562880,15000000]
["PATSYD-22-00208","BALEARIA EUROLÍNEAS MARITIMAS, S.A ","ADAPTACIÓN DE BUQUES PARA EL CONSUMO ELECTRICO (ABCOE)",562500,225000]
["PATSYD-22-00209","COMPAÑÍA ESPAÑOLA DE LAMINACIÓN SL","IMPLANTACIÓN DEL ANCHO MIXTO EN LOS APARTADEROS FERROVIARIOS DE CELSA PARA EL IMPULSO DE LA INTERMODALIDAD",3106750.98,1242700.3899999999]
["PATSYD-22-00211","TERMINAL CATALUNYA, S.A.","NUEVA TERMINAL FERROVIARIA INTERMODAL DE NAVARRA",5089070,2035628]
["PATSYD-22-00212","PONENTIA LOGISTICS, S.A.","IMPLEMENTACIÓN DE NUEVO SISTEMA OPERATIVO DE LA TERMINAL “ PONENTIA-LA MELUSA”. ",1166318,466527.2]
["PATSYD-22-00213","TRANSPORTES PORTUARIOS S.A.","Terminal Intermodal en la Parcela de la Antigua Carbonera - Tarragona Entrevias",3423115.04,1351860.83]
["PATSYD-22-00218","MARCOTRAN TRANSPORTES INTERNACIONALES SL","Adecuación de Aparcamiento Público, Seguro y Protegido de Camiones de Marcotran",3319333.55,1327733.42]
["PATSYD-22-00221","AUTOTERMINAL. S.A.","Automatización y optimización de las operaciones de entrada, salida y control de carga mediante tecnologías de gestión digital",1562463.28,561045.66]
["PATSYD-22-00223","ERMEWA IBÉRICA, S.L.","Pocket Wagon: \"Construcción, adquisición y comercialización de cincuenta vagones articulados de seis ejes tipo poche para el transporte de mercancías de autopistas ferroviarias en España\"",12981625,6414713.04]
["PATSYD-22-00225","NOATUM TERMINAL MÁLAGA, S.A.U.","Digital Terminal Operacional Systems - PORTOS ",11853253.67,4035421.56]
["PATSYD-22-00226","PROBISA VIAS Y OBRAS S.L.U","Mejora de la sostenibilidad en fabricación de mezclas asfálticas en Probisa Vías y Obras",2981718,1192687.2]
["PATSYD-22-00227","HELOERI, SL","Instalación de 2 HIdrolineras COmplementarias para la Ruta 1 [HICOH2R1]",2910000,1119303.8999999999]
["PATSYD-22-00229","Volkswagen Navarra S.A.,","DESARROLLO FERROVIARIO EN VOLKSWAGEN NAVARRA",14548850,5819540]
["PATSYD-22-00231","TRAILER CONSTRUCTION & REPAIRING IBERICA SA","Proyecto de inversión para la obtención de vehículos 100% eléctricos orientados a la asistencia en tierra a aeronaves en el sector aeroportuario ",12302859,3478623]
["PATSYD-22-00232","GLOBALVIA INVERSIONES SA","Sistemas  Inteligentes de Seguridad Activa en Carretera (SISAC)",367462.12999999989,110238.64]
["PATSYD-22-00234","BENITO ARNO E HIJOS SAU","RECICLADO DE MEZCLAS BITUMINOSAS A BAJAS TEMPERATURAS EN LAS CENTRALES DE LLEIDA Y TARRAGONA",1875758,706491.06]
["PATSYD-22-00236","TRANSPORTES MIXTOS ESPECIALES SA","Digitalización, sensorización y automatización de un pórtico grúa birrail para carga de 40 ton",402721,161088]
["PATSYD-22-00237","TERMINAL INTERMODAL MONZÓN, SL","CONSTRUCCIÓN DE NUEVA TERMINAL LITERA TIM",2640091,939729]
["PATSYD-22-00241","RAILSIDER ATLANTICO S.A.","Inversiones para la mejora de las instalaciones e implantación de una Terminal Intermodal Digitalizada de transporte de mercancías en Júndiz",2003523,801409.2]
["PATSYD-22-00244","ATHOS RAIL, SA","Adquisición de Locomotoras de mercancías eléctricas. ATHOS RAIL, S.A.",5000000,2000000]
["PATSYD-22-00245","AUTORIDAD PORTUARIA DE VIGO","APARTADERO FERROVIARIO EN LA PLISAN. TT.MM. SALVATERRA DE MIÑO-AS NEVES",22786871.100000001,8148882]
["PATSYD-22-00250","MEDWAY OPERADOR FERROVIARIO DE MERCADORIAS SA SUCURSAL EN ESPAÑA","Dotación de sistema ERTMS onboard para 25 locomotoras",8405000,4202500]
["PATSYD-22-00251","MEDWAY OPERADOR FERROVIARIO DE MERCADORIAS SA SUCURSAL EN ESPAÑA","Adquisición de vagones para el transporte de mercancías en Península Ibérica",62350000,23590556.850000001]
["PATSYD-22-00252","MEDWAY OPERADOR FERROVIARIO DE MERCADORIAS SA SUCURSAL EN ESPAÑA","Adquisición de locomotoras eléctricas de ancho ibérico para la circulación interoperativa entre España y Portugal",41136000,15000000]
["PATSYD-22-00255","RAILSIDER LOGISTICA FERROVIARIA, S.A.","Digitalización del gestor de flotas y vagones",256250,102500]
["PATSYD-22-00266","RAILSIDER LOGISTICA FERROVIARIA, S.A.","ADECUACIÓN DE VAGONES CONVENCIONALES PORTABOBINAS PJJ5 Y PJJ9",4100000,2050000]
["PATSYD-22-00268","LOW COST RAIL, S.A.","Adquisición de nuevo material rodante para el desarrollo de nuevos flujos ferroviarios en el ancho ibérico",14505000,5628795.29]
[null,null,null,1256574311.2399998,445371037.85000002]

{"sheet":"Tablas de datos","index":4,"n_rows":159,"n_cols":11,"rows_kept":159,"cut":false,"hidden":true,"merged":[]}
[{"$nulls":7},"Cuadro Mando",null,null,"Proyectos ampliado"]
[{"$nulls":7},"PATSYD-22-00005",null,null,"PATSYD-22-00005"]
[{"$nulls":5},"Sí/No",null,"PATSYD-22-00007",null,null,"PATSYD-22-00007"]
[null,"NÚMERO DE LA ACTIVIDAD ",null,"TIPOLOGÍA DE GASTOS ",null,"Sí",null,"PATSYD-22-00017",null,null,"PATSYD-22-00015"]
[null,1,null,"A. - Personal",null,"No",null,"PATSYD-22-00025",null,null,"PATSYD-22-00017"]
[null,2,null,"B. - Equipos, materiales y suministros",null,null,null,"PATSYD-22-00029",null,null,"PATSYD-22-00024"]
[null,3,null,"C. - Servicios",null,null,null,"PATSYD-22-00032",null,null,"PATSYD-22-00025"]
[null,4,null,"D. - Viajes y dietas",null,null,null,"PATSYD-22-00037",null,null,"PATSYD-22-00029"]
[null,5,null,"E. - Otros gastos directos",null,null,null,"PATSYD-22-00055",null,null,"PATSYD-22-00032"]
[null,6,{"$nulls":5},"PATSYD-22-00057",null,null,"PATSYD-22-00034"]
[null,7,{"$nulls":5},"PATSYD-22-00061",null,null,"PATSYD-22-00036"]
[null,8,{"$nulls":5},"PATSYD-22-00063",null,null,"PATSYD-22-00037"]
[{"$nulls":7},"PATSYD-22-00071",null,null,"PATSYD-22-00055"]
[{"$nulls":7},"PATSYD-22-00072",null,null,"PATSYD-22-00057"]
[{"$nulls":7},"PATSYD-22-00075",null,null,"PATSYD-22-00061"]
[{"$nulls":7},"PATSYD-22-00081",null,null,"PATSYD-22-00062"]
[{"$nulls":7},"PATSYD-22-00085",null,null,"PATSYD-22-00063"]
[{"$nulls":7},"PATSYD-22-00086",null,null,"PATSYD-22-00068"]
[{"$nulls":7},"PATSYD-22-00089",null,null,"PATSYD-22-00071"]
[{"$nulls":7},"PATSYD-22-00091",null,null,"PATSYD-22-00072"]
[{"$nulls":7},"PATSYD-22-00092",null,null,"PATSYD-22-00073"]
[{"$nulls":7},"PATSYD-22-00095",null,null,"PATSYD-22-00075"]
[{"$nulls":7},"PATSYD-22-00097",null,null,"PATSYD-22-00081"]
[{"$nulls":7},"PATSYD-22-00099",null,null,"PATSYD-22-00082"]
[{"$nulls":7},"PATSYD-22-00100",null,null,"PATSYD-22-00085"]
[{"$nulls":7},"PATSYD-22-00101",null,null,"PATSYD-22-00086"]
[{"$nulls":7},"PATSYD-22-00102",null,null,"PATSYD-22-00087"]
[{"$nulls":7},"PATSYD-22-00104",null,null,"PATSYD-22-00089"]
[{"$nulls":7},"PATSYD-22-00106",null,null,"PATSYD-22-00091"]
[{"$nulls":7},"PATSYD-22-00107",null,null,"PATSYD-22-00092"]
[{"$nulls":7},"PATSYD-22-00112",null,null,"PATSYD-22-00093"]
[{"$nulls":7},"PATSYD-22-00113",null,null,"PATSYD-22-00094"]
[{"$nulls":7},"PATSYD-22-00117",null,null,"PATSYD-22-00095"]
[{"$nulls":7},"PATSYD-22-00118",null,null,"PATSYD-22-00097"]
[{"$nulls":7},"PATSYD-22-00123",null,null,"PATSYD-22-00099"]
[{"$nulls":7},"PATSYD-22-00126",null,null,"PATSYD-22-00100"]
[{"$nulls":7},"PATSYD-22-00127",null,null,"PATSYD-22-00101"]
[{"$nulls":7},"PATSYD-22-00128",null,null,"PATSYD-22-00102"]
[{"$nulls":7},"PATSYD-22-00129",null,null,"PATSYD-22-00104"]
[{"$nulls":7},"PATSYD-22-00130",null,null,"PATSYD-22-00106"]
[{"$nulls":7},"PATSYD-22-00131",null,null,"PATSYD-22-00107"]
[{"$nulls":7},"PATSYD-22-00132",null,null,"PATSYD-22-00108"]
[{"$nulls":7},"PATSYD-22-00133",null,null,"PATSYD-22-00112"]
[{"$nulls":7},"PATSYD-22-00134",null,null,"PATSYD-22-00113"]
[{"$nulls":7},"PATSYD-22-00135",null,null,"PATSYD-22-00117"]
[{"$nulls":7},"PATSYD-22-00136",null,null,"PATSYD-22-00118"]
[{"$nulls":7},"PATSYD-22-00139",null,null,"PATSYD-22-00123"]
[{"$nulls":7},"PATSYD-22-00140",null,null,"PATSYD-22-00126"]
[{"$nulls":7},"PATSYD-22-00141",null,null,"PATSYD-22-00127"]
[{"$nulls":7},"PATSYD-22-00142",null,null,"PATSYD-22-00128"]
[{"$nulls":7},"PATSYD-22-00146",null,null,"PATSYD-22-00129"]
[{"$nulls":7},"PATSYD-22-00148",null,null,"PATSYD-22-00130"]
[{"$nulls":7},"PATSYD-22-00149",null,null,"PATSYD-22-00131"]
[{"$nulls":7},"PATSYD-22-00152",null,null,"PATSYD-22-00132"]
[{"$nulls":7},"PATSYD-22-00153",null,null,"PATSYD-22-00133"]
[{"$nulls":7},"PATSYD-22-00154",null,null,"PATSYD-22-00134"]
[{"$nulls":7},"PATSYD-22-00155",null,null,"PATSYD-22-00135"]
[{"$nulls":7},"PATSYD-22-00158",null,null,"PATSYD-22-00136"]
[{"$nulls":7},"PATSYD-22-00161",null,null,"PATSYD-22-00139"]
[{"$nulls":7},"PATSYD-22-00162",null,null,"PATSYD-22-00140"]
[{"$nulls":7},"PATSYD-22-00163",null,null,"PATSYD-22-00141"]
[{"$nulls":7},"PATSYD-22-00179",null,null,"PATSYD-22-00142"]
[{"$nulls":7},"PATSYD-22-00180",null,null,"PATSYD-22-00144"]
[{"$nulls":7},"PATSYD-22-00181",null,null,"PATSYD-22-00145"]
[{"$nulls":7},"PATSYD-22-00182",null,null,"PATSYD-22-00146"]
[{"$nulls":7},"PATSYD-22-00186",null,null,"PATSYD-22-00148"]
[{"$nulls":7},"PATSYD-22-00188",null,null,"PATSYD-22-00149"]
[{"$nulls":7},"PATSYD-22-00193",null,null,"PATSYD-22-00150"]
[{"$nulls":7},"PATSYD-22-00194",null,null,"PATSYD-22-00152"]
[{"$nulls":7},"PATSYD-22-00195",null,null,"PATSYD-22-00153"]
[{"$nulls":7},"PATSYD-22-00197",null,null,"PATSYD-22-00154"]
[{"$nulls":7},"PATSYD-22-00198",null,null,"PATSYD-22-00155"]
[{"$nulls":7},"PATSYD-22-00199",null,null,"PATSYD-22-00158"]
[{"$nulls":7},"PATSYD-22-00200",null,null,"PATSYD-22-00160"]
[{"$nulls":7},"PATSYD-22-00201",null,null,"PATSYD-22-00161"]
[{"$nulls":7},"PATSYD-22-00203",null,null,"PATSYD-22-00162"]
[{"$nulls":7},"PATSYD-22-00205",null,null,"PATSYD-22-00163"]
[{"$nulls":7},"PATSYD-22-00207",null,null,"PATSYD-22-00164"]
[{"$nulls":7},"PATSYD-22-00208",null,null,"PATSYD-22-00165"]
[{"$nulls":7},"PATSYD-22-00209",null,null,"PATSYD-22-00166"]
[{"$nulls":7},"PATSYD-22-00211",null,null,"PATSYD-22-00170"]
[{"$nulls":7},"PATSYD-22-00212",null,null,"PATSYD-22-00171"]
[{"$nulls":7},"PATSYD-22-00213",null,null,"PATSYD-22-00172"]
[{"$nulls":7},"PATSYD-22-00218",null,null,"PATSYD-22-00173"]
[{"$nulls":7},"PATSYD-22-00221",null,null,"PATSYD-22-00174"]
[{"$nulls":7},"PATSYD-22-00223",null,null,"PATSYD-22-00176"]
[{"$nulls":7},"PATSYD-22-00225",null,null,"PATSYD-22-00177"]
[{"$nulls":7},"PATSYD-22-00226",null,null,"PATSYD-22-00179"]
[{"$nulls":7},"PATSYD-22-00227",null,null,"PATSYD-22-00180"]
[{"$nulls":7},"PATSYD-22-00229",null,null,"PATSYD-22-00181"]
[{"$nulls":7},"PATSYD-22-00231",null,null,"PATSYD-22-00182"]
[{"$nulls":7},"PATSYD-22-00232",null,null,"PATSYD-22-00185"]
[{"$nulls":7},"PATSYD-22-00234",null,null,"PATSYD-22-00186"]
[{"$nulls":7},"PATSYD-22-00236",null,null,"PATSYD-22-00187"]
[{"$nulls":7},"PATSYD-22-00237",null,null,"PATSYD-22-00188"]
[{"$nulls":7},"PATSYD-22-00241",null,null,"PATSYD-22-00190"]
[{"$nulls":7},"PATSYD-22-00244",null,null,"PATSYD-22-00191"]
[{"$nulls":7},"PATSYD-22-00245",null,null,"PATSYD-22-00193"]
[{"$nulls":7},"PATSYD-22-00250",null,null,"PATSYD-22-00194"]
[{"$nulls":7},"PATSYD-22-00251",null,null,"PATSYD-22-00195"]
[{"$nulls":7},"PATSYD-22-00252",null,null,"PATSYD-22-00196"]
[{"$nulls":7},"PATSYD-22-00255",null,null,"PATSYD-22-00197"]
[{"$nulls":7},"PATSYD-22-00266",null,null,"PATSYD-22-00198"]
[{"$nulls":7},"PATSYD-22-00268",null,null,"PATSYD-22-00199"]
[{"$nulls":10},"PATSYD-22-00200"]
[{"$nulls":10},"PATSYD-22-00201"]
[{"$nulls":10},"PATSYD-22-00202"]
[{"$nulls":10},"PATSYD-22-00203"]
[{"$nulls":10},"PATSYD-22-00204"]
[{"$nulls":10},"PATSYD-22-00205"]
[{"$nulls":10},"PATSYD-22-00206"]
[{"$nulls":10},"PATSYD-22-00207"]
[{"$nulls":10},"PATSYD-22-00208"]
[{"$nulls":10},"PATSYD-22-00209"]
[{"$nulls":10},"PATSYD-22-00211"]
[{"$nulls":10},"PATSYD-22-00212"]
[{"$nulls":10},"PATSYD-22-00213"]
[{"$nulls":10},"PATSYD-22-00215"]
[{"$nulls":10},"PATSYD-22-00216"]
[{"$nulls":10},"PATSYD-22-00217"]
[{"$nulls":10},"PATSYD-22-00218"]
[{"$nulls":10},"PATSYD-22-00221"]
[{"$nulls":10},"PATSYD-22-00223"]
[{"$nulls":10},"PATSYD-22-00225"]
[{"$nulls":10},"PATSYD-22-00226"]
[{"$nulls":10},"PATSYD-22-00227"]
[{"$nulls":10},"PATSYD-22-00229"]
[{"$nulls":10},"PATSYD-22-00230"]
[{"$nulls":10},"PATSYD-22-00231"]
[{"$nulls":10},"PATSYD-22-00232"]
[{"$nulls":10},"PATSYD-22-00234"]
[{"$nulls":10},"PATSYD-22-00235"]
[{"$nulls":10},"PATSYD-22-00236"]
[{"$nulls":10},"PATSYD-22-00237"]
[{"$nulls":10},"PATSYD-22-00239"]
[{"$nulls":10},"PATSYD-22-00240"]
[{"$nulls":10},"PATSYD-22-00241"]
[{"$nulls":10},"PATSYD-22-00242"]
[{"$nulls":10},"PATSYD-22-00243"]
[{"$nulls":10},"PATSYD-22-00244"]
[{"$nulls":10},"PATSYD-22-00245"]
[{"$nulls":10},"PATSYD-22-00247"]
[{"$nulls":10},"PATSYD-22-00248"]
[{"$nulls":10},"PATSYD-22-00249"]
[{"$nulls":10},"PATSYD-22-00250"]
[{"$nulls":10},"PATSYD-22-00251"]
[{"$nulls":10},"PATSYD-22-00252"]
[{"$nulls":10},"PATSYD-22-00255"]
[{"$nulls":10},"PATSYD-22-00257"]
[{"$nulls":10},"PATSYD-22-00258"]
[{"$nulls":10},"PATSYD-22-00259"]
[{"$nulls":10},"PATSYD-22-00260"]
[{"$nulls":10},"PATSYD-22-00261"]
[{"$nulls":10},"PATSYD-22-00262"]
[{"$nulls":10},"PATSYD-22-00263"]
[{"$nulls":10},"PATSYD-22-00265"]
[{"$nulls":10},"PATSYD-22-00266"]
[{"$nulls":10},"PATSYD-22-00268"]
[{"$nulls":10},"PATSYD-22-00269"]